fUST/lending_fUST_20241007
["ID","MTS","AMOUNT","RATE_DAILY","PERIOD"]
[339976608,1728245507907,-1003.97,0.00017808,2]
[339976609,1728245507918,-521.089365,0.00017808,2]
[339976610,1728245507929,-539.970348,0.00017808,2]
[339976611,1728245507940,-541.62,0.00017808,2]
[339976612,1728245507952,-521.089359,0.00017808,2]
[339976613,1728245507964,-589.17,0.00017808,2]
[339976614,1728245507976,-500.0,0.00017808,2]
[339976615,1728245507989,-539.970344,0.00017808,2]
[339976616,1728245508000,-500.0,0.00017808,2]
[339976617,1728245508011,-1166.46,0.00017808,2]
[339976618,1728245508022,-606.03,0.00017808,2]
[339976619,1728245508032,-578.55,0.00017808,2]
[339976620,1728245508042,-500.0,0.00017808,2]
[339976621,1728245508052,-526.31,0.00017808,2]
[339976622,1728245508063,-500.0,0.00017808,2]
[339976623,1728245508074,-500.0,0.00017808,2]
[339976624,1728245508085,-725.991254,0.00017808,2]
[339976625,1728245508261,-616.98,0.00017808,2]
[339976626,1728245508272,-725.99126,0.00017808,2]
[339976627,1728245508282,-500.0,0.00017808,2]
[339976628,1728245508294,-500.0,0.00017808,2]
[339976629,1728245508304,-667.06,0.00017808,2]
[339976630,1728245508315,-500.0,0.00017808,2]
[339976631,1728245508325,-500.0,0.00017808,2]
[339976632,1728245508338,-529.178314,0.00017808,2]
[339976633,1728245508348,-529.178318,0.00017808,2]
[339976634,1728245508359,-500.0,0.00017808,2]
[339976635,1728245508376,-1194.140839,0.00017808,2]
[339976636,1728245508385,-1194.140838,0.00017808,2]
[339976637,1728245508395,-1854.38,0.00017808,2]
[339976638,1728245508404,-151.0,0.00017808,2]
[339976639,1728245508414,-500.0,0.00017808,2]
[339976640,1728245508424,-500.0,0.00017808,2]
[339976641,1728245508434,-244.009806,0.00017808,2]
[339976642,1728245508444,-2983.12,0.00017808,2]
[339976643,1728245508455,-244.009799,0.00017808,2]
[339976644,1728245508466,-667.95,0.00017808,2]
[339976645,1728245508477,-830.07,0.00017808,2]
[339976646,1728245508487,-518.7,0.00017808,2]
[339976647,1728245508497,-500.0,0.00017808,2]
[339976648,1728245508509,-500.0,0.00017808,2]
[339976649,1728245508519,-500.0,0.00017808,2]
[339976650,1728245508529,-2165.89,0.00017808,2]
[339976651,1728245508538,-880.03,0.00017808,2]
[339976652,1728245508549,-3094.43,0.00017808,2]
[339976653,1728245508559,-701.44,0.00017808,2]
[339976654,1728245508569,-500.0,0.00017808,2]
[339976655,1728245508579,-4696.79,0.00017808,2]
[339976656,1728245508589,-505.3,0.00017808,2]
[339976657,1728245508599,-500.0,0.00017808,2]
[339976658,1728245508610,-507.4,0.00017808,2]
[339976659,1728245508621,-500.0,0.00017808,2]
[339976660,1728245508630,-166.635189,0.00017808,2]
[339976661,1728245508640,-166.635189,0.00017808,2]
[339976662,1728245508651,-166.635189,0.00017808,2]
[339976663,1728245508662,-166.635189,0.00017808,2]
[339976664,1728245508673,-166.635189,0.00017808,2]
[339976665,1728245508683,-166.635189,0.00017808,2]
[339976666,1728245508692,-166.635189,0.00017808,2]
[339976667,1728245508702,-166.635189,0.00017808,2]
[339976668,1728245508713,-166.635189,0.00017808,2]
[339976669,1728245508722,-166.635189,0.00017808,2]
[339976670,1728245508733,-166.635189,0.00017808,2]
[339976671,1728245508743,-166.635189,0.00017808,2]
[339976672,1728245508753,-166.635189,0.00017808,2]
[339976673,1728245508762,-166.635189,0.00017808,2]
[339976674,1728245508772,-166.635189,0.00017808,2]
[339976675,1728245508782,-166.635189,0.00017808,2]
[339976676,1728245508791,-166.635189,0.00017808,2]
[339976677,1728245508802,-166.635189,0.00017808,2]
[339976678,1728245508814,-150.0,0.00017808,2]
[339976679,1728245508825,-2000.0,0.00018,21]
[339976680,1728245508835,-150.0,0.00018,2]
[339976681,1728245508846,-185.0,0.00018,2]
[339976682,1728245508857,-5307.04917165,0.00018,2]
[339976683,1728245508868,-151.0,0.00018,2]
[339976684,1728245508879,-1541.796647,0.00018,2]
[339976685,1728245508889,-1541.796649,0.00018,2]
[339976686,1728245508899,-3394.923181,0.00018,2]
[339976687,1728245508909,-3394.923185,0.00018,2]
[339976688,1728245508919,-461.0,0.00018082,2]
[339976689,1728245508931,-811.88,0.00018082,2]
[339976690,1728245508942,-557.7225961,0.00018082,2]
[339976691,1728245508952,-321.9159,0.00018082,2]
[339976692,1728245508962,-321.915909,0.00018082,2]
[339976693,1728245508972,-538.21,0.00018082,2]
[339976694,1728245508982,-500.0,0.00018082,2]
[339976695,1728245508992,-690.31,0.00018082,2]
[339976696,1728245509002,-753.75,0.00018082,2]
[339976697,1728245509012,-500.0,0.00018082,2]
[339976698,1728245509023,-500.0,0.00018082,2]
[339976699,1728245509034,-560.51,0.00018082,2]
[339976700,1728245509043,-500.0,0.00018082,2]
[339976701,1728245509054,-693.21,0.00018082,2]
[339976702,1728245509064,-750.67,0.00018082,2]
[339976703,1728245509075,-624.79,0.00018082,2]
[339976704,1728245509084,-500.0,0.00018082,2]
[339976705,1728245509094,-500.0,0.00018082,2]
[339976706,1728245509103,-233.660975,0.00018082,2]
[339976707,1728245509113,-621.15,0.00018082,2]
[339976708,1728245509125,-573.68,0.00018082,2]
[339976709,1728245509136,-500.0,0.00018082,2]
[339976710,1728245509146,-500.0,0.00018082,2]
[339976711,1728245509157,-566.65,0.00018082,2]
[339976712,1728245509167,-151.0,0.00018082,2]
[339976713,1728245509177,-500.0,0.00018082,2]
[339976714,1728245509187,-166.635189,0.00018082,2]
[339976715,1728245509197,-166.635182,0.00018082,2]
[339976716,1728245509207,-1154.19,0.00018082,2]
[339976717,1728245509216,-511.18,0.00018082,2]
[339976718,1728245509225,-1179.38,0.00018082,2]
[339976719,1728245509236,-205.01750043,0.00018082,2]
[339976720,1728245509247,-751.93,0.00018082,2]
[339976721,1728245509257,-151.0,0.00018082,2]
[339976722,1728245509266,-500.0,0.00018082,2]
[339976723,1728245509278,-500.0,0.00018082,2]
[339976724,1728245509289,-734.54,0.00018082,2]
[339976725,1728245509299,-244.100492,0.00018082,2]
[339976726,1728245509310,-244.100495,0.00018082,2]
[339976727,1728245509322,-1105.529882,0.00018082,2]
[339976728,1728245509333,-1105.529882,0.00018082,2]
[339976729,1728245509343,-500.0,0.00018082,2]
[339976730,1728245509355,-500.0,0.00018082,2]
[339976731,1728245509366,-782.03,0.00018082,2]
[339976732,1728245509376,-500.0,0.00018082,2]
[339976733,1728245509387,-572.06586125,0.00018082,2]
[339976734,1728245509398,-600.57,0.00018082,2]
[339976735,1728245509407,-1034.12,0.00018082,2]
[339976736,1728245509418,-307.93220542,0.00018082,2]
[339976737,1728245509428,-601.47702229,0.00018082,2]
[339976738,1728245509438,-567.02,0.00018082,2]
[339976739,1728245509448,-547.51,0.00018082,2]
[339976740,1728245509457,-620.41,0.00018082,2]
[339976741,1728245509466,-500.0,0.00018082,2]
[339976742,1728245509477,-500.0,0.00018082,2]
[339976743,1728245509486,-622.64,0.00018082,2]
[339976744,1728245509497,-500.0,0.00018082,2]
[339976745,1728245509508,-1766.09,0.00018082,2]
[339976746,1728245509518,-1018.45,0.00018082,2]
[339976747,1728245509529,-336.72,0.00018082,2]
[339976748,1728245509539,-646.49,0.00018082,2]
[339976749,1728245509550,-548.58,0.00018082,2]
[339976750,1728245509560,-642.06,0.00018082,2]
[339976751,1728245509572,-416.51301802,0.00018082,2]
[339976752,1728245509583,-500.0,0.00018082,2]
[339976753,1728245509594,-732.29,0.00018082,2]
[339976754,1728245509604,-678.84,0.00018082,2]
[339976755,1728245509615,-744.55,0.00018082,2]
[339976756,1728245509626,-592.83100346,0.00018082,2]
[339976757,1728245509637,-500.0,0.00018082,2]
[339976758,1728245509647,-344.06048845,0.00018082,2]
[339976759,1728245509656,-500.0,0.00018082,2]
[339976760,1728245509666,-500.0,0.00018082,2]
[339976761,1728245509675,-701.53,0.00018082,2]
[339976762,1728245509685,-977.67,0.00018082,2]
[339976763,1728245509694,-500.0,0.00018082,2]
[339976764,1728245509704,-631.97,0.00018082,2]
[339976765,1728245509714,-740.81,0.00018082,2]
[339976766,1728245509724,-566.27,0.00018082,2]
[339976767,1728245509733,-1278.33,0.00018082,2]
[339976768,1728245509743,-500.0,0.00018082,2]
[339976769,1728245509753,-711.1,0.00018082,2]
[339976770,1728245509762,-500.0,0.00018082,2]
[339976771,1728245509772,-500.0,0.00018082,2]
[339976772,1728245509782,-500.0,0.00018082,2]
[339976773,1728245509793,-1687.43,0.00018082,2]
[339976774,1728245509804,-500.0,0.00018082,2]
[339976775,1728245509814,-500.0,0.00018082,2]
[339976776,1728245509826,-559.4,0.00018082,2]
[339976777,1728245509836,-620.94,0.00018082,2]
[339976778,1728245509847,-570.64,0.00018082,2]
[339976779,1728245509858,-590.68,0.00018082,2]
[339976780,1728245509868,-525.69,0.00018082,2]
[339976781,1728245509879,-731.95,0.00018082,2]
[339976782,1728245509888,-749.78,0.00018082,2]
[339976783,1728245509899,-500.0,0.00018082,2]
[339976784,1728245509909,-500.0,0.00018082,2]
[339976785,1728245509919,-500.0,0.00018082,2]
[339976786,1728245509931,-500.0,0.00018082,2]
[339976787,1728245509943,-500.0,0.00018082,2]
[339976788,1728245509953,-700.34,0.00018082,2]
[339976789,1728245509963,-850.21,0.00018082,2]
[339976790,1728245509973,-793.43,0.00018082,2]
[339976791,1728245509983,-681.81,0.00018082,2]
[339976792,1728245509995,-500.0,0.00018082,2]
[339976793,1728245510006,-905.5,0.00018082,2]
[339976794,1728245510018,-618.07,0.00018082,2]
[339976795,1728245510030,-500.0,0.00018082,2]
[339976796,1728245510041,-1004.36,0.00018082,2]
[339976797,1728245510053,-769.79,0.00018082,2]
[339976798,1728245510062,-500.0,0.00018082,2]
[339976799,1728245510073,-556.25,0.00018082,2]
[339976800,1728245510084,-704.99,0.00018082,2]
[339976801,1728245510094,-511.68,0.00018082,2]
[339976802,1728245510104,-151.0,0.00018082,2]
[339976803,1728245510115,-500.0,0.00018082,2]
[339976804,1728245510127,-500.0,0.00018082,2]
[339976805,1728245510138,-500.0,0.00018082,2]
[339976806,1728245510149,-716.88,0.00018082,2]
[339976807,1728245510165,-1213.0,0.00018082,2]
[339976808,1728245510176,-502.96,0.00018082,2]
[339976809,1728245510187,-500.0,0.00018082,2]
[339976810,1728245510199,-640.83,0.00018082,2]
[339976811,1728245510210,-799.58,0.00018082,2]
[339976812,1728245510221,-500.0,0.00018082,2]
[339976813,1728245510233,-2198.44,0.00018082,2]
[339976814,1728245510244,-701.74,0.00018082,2]
[339976815,1728245510254,-500.0,0.00018082,2]
[339976816,1728245510266,-23220.06,0.00018082,2]
[339976817,1728245510278,-513.24,0.00018082,2]
[339976818,1728245510289,-500.0,0.00018082,2]
[339976819,1728245510300,-1825.72,0.00018082,2]
[339976820,1728245510310,-500.0,0.00018082,2]
[339976821,1728245510321,-689.01,0.00018082,2]
[339976822,1728245510332,-3809.25,0.00018082,2]
[339976823,1728245510341,-1068.37,0.00018082,2]
[339976824,1728245510352,-500.0,0.00018082,2]
[339976825,1728245510362,-500.0,0.00018082,2]
[339976826,1728245510373,-1687.94,0.00018082,2]
[339976827,1728245510383,-1019.82,0.00018082,2]
[339976828,1728245510394,-500.0,0.00018082,2]
[339976829,1728245510405,-500.0,0.00018082,2]
[339976830,1728245510415,-500.0,0.00018082,2]
[339976831,1728245510425,-611.72,0.00018082,2]
[339976832,1728245510436,-564.15,0.00018082,2]
[339976833,1728245510445,-608.82,0.00018082,2]
[339976834,1728245510456,-605.81,0.00018082,2]
[339976835,1728245510468,-1003.97,0.00018082,2]
[339976836,1728245510478,-541.62,0.00018082,2]
[339976837,1728245510489,-589.17,0.00018082,2]
[339976838,1728245510499,-500.0,0.00018082,2]
[339976839,1728245510512,-602.77852169,0.00018082,2]
[339976840,1728245510522,-1166.46,0.00018082,2]
[339976841,1728245510531,-606.03,0.00018082,2]
[339976842,1728245510541,-578.55,0.00018082,2]
[339976843,1728245510552,-500.0,0.00018082,2]
[339976844,1728245510563,-526.31,0.00018082,2]
[339976845,1728245510574,-500.0,0.00018082,2]
[339976846,1728245510586,-500.0,0.00018082,2]
[339976847,1728245510596,-616.98,0.00018082,2]
[339976848,1728245510609,-500.0,0.00018082,2]
[339976849,1728245510621,-500.0,0.00018082,2]
[339976850,1728245510632,-667.06,0.00018082,2]
[339976851,1728245510644,-500.0,0.00018082,2]
[339976852,1728245510654,-500.0,0.00018082,2]
[339976853,1728245510665,-500.0,0.00018082,2]
[339976854,1728245510677,-1854.38,0.00018082,2]
[339976855,1728245510687,-500.0,0.00018082,2]
[339976856,1728245510697,-500.0,0.00018082,2]
[339976857,1728245510708,-2983.12,0.00018082,2]
[339976858,1728245510719,-667.95,0.00018082,2]
[339976859,1728245510728,-830.07,0.00018082,2]
[339976860,1728245510739,-518.7,0.00018082,2]
[339976861,1728245510748,-500.0,0.00018082,2]
[339976862,1728245510759,-500.0,0.00018082,2]
[339976863,1728245510770,-500.0,0.00018082,2]
[339976864,1728245510780,-2165.89,0.00018082,2]
[339976865,1728245510791,-880.03,0.00018082,2]
[339976866,1728245510801,-3094.43,0.00018082,2]
[339976867,1728245510811,-701.44,0.00018082,2]
[339976868,1728245510823,-500.0,0.00018082,2]
[339976869,1728245510886,-4696.79,0.00018082,2]
[339976870,1728245510897,-505.3,0.00018082,2]
[339976871,1728245510909,-500.0,0.00018082,2]
[339976872,1728245510919,-507.4,0.00018082,2]
[339976873,1728245510930,-500.0,0.00018082,2]
[339976874,1728245510939,-413.0249282,0.00018082,2]
[339976875,1728245510950,-413.0249282,0.00018082,2]
[339976876,1728245510960,-413.0249282,0.00018082,2]
[339976877,1728245510970,-412.3263802,0.00018082,2]
[339976878,1728245510982,-1152.0,0.00018153,2]
[339976879,1728245510992,-250.0,0.00018309,2]
[339976880,1728245511002,-461.0,0.00018356,2]
[339976881,1728245511012,-811.88,0.00018356,2]
[339976882,1728245511022,-538.21,0.00018356,2]
[339976883,1728245511035,-500.0,0.00018356,2]
[339976884,1728245511047,-690.31,0.00018356,2]
[339976885,1728245511057,-753.75,0.00018356,2]
[339976886,1728245511067,-500.0,0.00018356,2]
[339976887,1728245511078,-500.0,0.00018356,2]
[339976888,1728245511089,-560.51,0.00018356,2]
[339976889,1728245511101,-500.0,0.00018356,2]
[339976890,1728245511111,-693.21,0.00018356,2]
[339976891,1728245511123,-750.67,0.00018356,2]
[339976892,1728245511135,-624.79,0.00018356,2]
[339976893,1728245511145,-516.31256229,0.00018356,2]
[339976894,1728245511159,-446.01757022,0.00018356,2]
[339976895,1728245511171,-621.15,0.00018356,2]
[339976896,1728245511181,-573.68,0.00018356,2]
[339976897,1728245511191,-500.0,0.00018356,2]
[339976898,1728245511202,-500.0,0.00018356,2]
[339976899,1728245511213,-566.65,0.00018356,2]
[339976900,1728245511225,-305.06388843,0.00018356,2]
[339976901,1728245511234,-1154.19,0.00018356,2]
[339976902,1728245511245,-511.18,0.00018356,2]
[339976903,1728245511256,-1179.38,0.00018356,2]
[339976904,1728245511266,-751.93,0.00018356,2]
[339976905,1728245511276,-500.0,0.00018356,2]
[339976906,1728245511287,-500.0,0.00018356,2]
[339976907,1728245511298,-734.54,0.00018356,2]
[339976908,1728245511310,-500.0,0.00018356,2]
[339976909,1728245511322,-500.0,0.00018356,2]
[339976910,1728245511333,-782.03,0.00018356,2]
[339976911,1728245511343,-500.0,0.00018356,2]
[339976912,1728245511354,-600.57,0.00018356,2]
[339976913,1728245511364,-1034.12,0.00018356,2]
[339976914,1728245511380,-567.02,0.00018356,2]
[339976915,1728245511390,-547.51,0.00018356,2]
[339976916,1728245511400,-620.41,0.00018356,2]
[339976917,1728245511409,-500.0,0.00018356,2]
[339976918,1728245511419,-500.0,0.00018356,2]
[339976919,1728245511428,-622.64,0.00018356,2]
[339976920,1728245511439,-500.0,0.00018356,2]
[339976921,1728245511449,-1766.09,0.00018356,2]
[339976922,1728245511458,-1018.45,0.00018356,2]
[339976923,1728245511468,-336.72,0.00018356,2]
[339976924,1728245511481,-646.49,0.00018356,2]
[339976925,1728245511492,-548.58,0.00018356,2]
[339976926,1728245511502,-642.06,0.00018356,2]
[339976927,1728245511513,-500.0,0.00018356,2]
[339976928,1728245511523,-732.29,0.00018356,2]
[339976929,1728245511535,-678.84,0.00018356,2]
[339976930,1728245511548,-744.55,0.00018356,2]
[339976931,1728245511560,-500.0,0.00018356,2]
[339976932,1728245511571,-500.0,0.00018356,2]
[339976933,1728245511583,-500.0,0.00018356,2]
[339976934,1728245511594,-701.53,0.00018356,2]
[339976935,1728245511605,-977.67,0.00018356,2]
[339976936,1728245511617,-500.0,0.00018356,2]
[339976937,1728245511628,-631.97,0.00018356,2]
[339976938,1728245511639,-740.81,0.00018356,2]
[339976939,1728245511650,-566.27,0.00018356,2]
[339976940,1728245511662,-1278.33,0.00018356,2]
[339976941,1728245511673,-500.0,0.00018356,2]
[339976942,1728245511682,-711.1,0.00018356,2]
[339976943,1728245511692,-500.0,0.00018356,2]
[339976944,1728245511702,-500.0,0.00018356,2]
[339976945,1728245511714,-500.0,0.00018356,2]
[339976946,1728245511725,-1687.43,0.00018356,2]
[339976947,1728245511736,-361.38276151,0.00018356,2]
[339976948,1728245511746,-500.0,0.00018356,2]
[339976949,1728245511756,-559.4,0.00018356,2]
[339976950,1728245511766,-620.94,0.00018356,2]
[339976951,1728245511776,-570.64,0.00018356,2]
[339976952,1728245511788,-590.68,0.00018356,2]
[339976953,1728245511799,-525.69,0.00018356,2]
[339976954,1728245511808,-731.95,0.00018356,2]
[339976955,1728245511818,-749.78,0.00018356,2]
[339976956,1728245511827,-500.0,0.00018356,2]
[339976957,1728245511837,-500.0,0.00018356,2]
[339976958,1728245511846,-500.0,0.00018356,2]
[339976959,1728245511856,-500.0,0.00018356,2]
[339976960,1728245511866,-500.0,0.00018356,2]
[339976961,1728245511878,-850.21,0.00018356,2]
[339976962,1728245511888,-700.34,0.00018356,2]
[339976963,1728245511898,-793.43,0.00018356,2]
[339976964,1728245511908,-681.81,0.00018356,2]
[339976965,1728245511918,-500.0,0.00018356,2]
[339976966,1728245511928,-905.5,0.00018356,2]
[339976967,1728245511939,-618.07,0.00018356,2]
[339976968,1728245511951,-500.0,0.00018356,2]
[339976969,1728245511962,-1004.36,0.00018356,2]
[339976970,1728245511972,-769.79,0.00018356,2]
[339976971,1728245511984,-501.80654362,0.00018356,2]
[339976972,1728245511994,-556.25,0.00018356,2]
[339976973,1728245512004,-704.99,0.00018356,2]
[339976974,1728245512013,-511.68,0.00018356,2]
[339976975,1728245512023,-151.0,0.00018356,2]
[339976976,1728245512033,-500.0,0.00018356,2]
[339976977,1728245512042,-500.0,0.00018356,2]
[339976978,1728245512052,-500.0,0.00018356,2]
[339976979,1728245512063,-716.88,0.00018356,2]
[339976980,1728245512074,-1213.0,0.00018356,2]
[339976981,1728245512084,-502.96,0.00018356,2]
[339976982,1728245512094,-500.0,0.00018356,2]
[339976983,1728245512103,-640.83,0.00018356,2]
[339976984,1728245512114,-799.58,0.00018356,2]
[339976985,1728245512124,-500.0,0.00018356,2]
[339976986,1728245512134,-2198.44,0.00018356,2]
[339976987,1728245512144,-500.0,0.00018356,2]
[339976988,1728245512155,-23220.06,0.00018356,2]
[339976989,1728245512169,-513.24,0.00018356,2]
[339976990,1728245512179,-207.05111426,0.00018356,2]
[339976991,1728245512189,-1825.72,0.00018356,2]
[339976992,1728245512200,-500.0,0.00018356,2]
[339976993,1728245512210,-689.01,0.00018356,2]
[339976994,1728245512220,-3809.25,0.00018356,2]
[339976995,1728245512230,-701.74,0.00018356,2]
[339976996,1728245512242,-1068.37,0.00018356,2]
[339976997,1728245512253,-500.0,0.00018356,2]
[339976998,1728245512263,-500.0,0.00018356,2]
[339976999,1728245512274,-1687.94,0.00018356,2]
[339977000,1728245512284,-1019.82,0.00018356,2]
[339977001,1728245512295,-500.0,0.00018356,2]
[339977002,1728245512305,-500.0,0.00018356,2]
[339977003,1728245512315,-500.0,0.00018356,2]
[339977004,1728245512325,-611.72,0.00018356,2]
[339977005,1728245512335,-564.15,0.00018356,2]
[339977006,1728245512347,-608.82,0.00018356,2]
[339977007,1728245512359,-1003.97,0.00018356,2]
[339977008,1728245512370,-605.81,0.00018356,2]
[339977009,1728245512382,-541.62,0.00018356,2]
[339977010,1728245512394,-589.17,0.00018356,2]
[339977011,1728245512404,-500.0,0.00018356,2]
[339977012,1728245512414,-1166.46,0.00018356,2]
[339977013,1728245512423,-606.03,0.00018356,2]
[339977014,1728245512433,-578.55,0.00018356,2]
[339977015,1728245512442,-500.0,0.00018356,2]
[339977016,1728245512451,-526.31,0.00018356,2]
[339977017,1728245512461,-500.0,0.00018356,2]
[339977018,1728245512471,-500.0,0.00018356,2]
[339977019,1728245512481,-616.98,0.00018356,2]
[339977020,1728245512491,-500.0,0.00018356,2]
[339977021,1728245512500,-500.0,0.00018356,2]
[339977022,1728245512511,-667.06,0.00018356,2]
[339977023,1728245512521,-327.66477023,0.00018356,2]
[339977024,1728245512531,-396.86421246,0.00018356,2]
[339977025,1728245512541,-470.54980677,0.00018356,2]
[339977026,1728245512551,-1854.38,0.00018356,2]
[339977027,1728245512561,-500.0,0.00018356,2]
[339977028,1728245512571,-500.0,0.00018356,2]
[339977029,1728245512582,-2983.12,0.00018356,2]
[339977030,1728245512591,-667.95,0.00018356,2]
[339977031,1728245512601,-830.07,0.00018356,2]
[339977032,1728245512611,-518.7,0.00018356,2]
[339977033,1728245512621,-540.26488392,0.00018356,2]
[339977034,1728245512631,-500.0,0.00018356,2]
[339977035,1728245512641,-500.0,0.00018356,2]
[339977036,1728245512652,-2165.89,0.00018356,2]
[339977037,1728245512662,-880.03,0.00018356,2]
[339977038,1728245512673,-3094.43,0.00018356,2]
[339977039,1728245512683,-701.44,0.00018356,2]
[339977040,1728245512692,-500.0,0.00018356,2]
[339977041,1728245512703,-4696.79,0.00018356,2]
[339977042,1728245512713,-505.3,0.00018356,2]
[339977043,1728245512723,-500.0,0.00018356,2]
[339977044,1728245512733,-507.4,0.00018356,2]
[339977045,1728245512743,-500.0,0.00018356,2]
[339977046,1728245512753,-461.0,0.0001863,2]
[339977047,1728245512763,-811.88,0.0001863,2]
[339977048,1728245512772,-538.21,0.0001863,2]
[339977049,1728245512782,-508.34,0.0001863,2]
[339977050,1728245512791,-690.31,0.0001863,2]
[339977051,1728245512801,-753.75,0.0001863,2]
[339977052,1728245512810,-500.0,0.0001863,2]
[339977053,1728245512819,-500.0,0.0001863,2]
[339977054,1728245512829,-560.51,0.0001863,2]
[339977055,1728245512839,-500.0,0.0001863,2]
[339977056,1728245512848,-693.21,0.0001863,2]
[339977057,1728245512858,-750.67,0.0001863,2]
[339977058,1728245512868,-624.79,0.0001863,2]
[339977059,1728245512877,-621.15,0.0001863,2]
[339977060,1728245512887,-573.68,0.0001863,2]
[339977061,1728245512897,-500.0,0.0001863,2]
[339977062,1728245512907,-500.0,0.0001863,2]
[339977063,1728245512916,-566.65,0.0001863,2]
[339977064,1728245512925,-1154.19,0.0001863,2]
[339977065,1728245512934,-511.18,0.0001863,2]
[339977066,1728245512944,-1179.38,0.0001863,2]
[339977067,1728245512954,-751.93,0.0001863,2]
[339977068,1728245512965,-590.79647714,0.0001863,2]
[339977069,1728245512975,-500.0,0.0001863,2]
[339977070,1728245512985,-734.54,0.0001863,2]
[339977071,1728245512996,-500.0,0.0001863,2]
[339977072,1728245513008,-500.0,0.0001863,2]
[339977073,1728245513018,-782.03,0.0001863,2]
[339977074,1728245513031,-182.62084844,0.0001863,2]
[339977075,1728245513042,-600.57,0.0001863,2]
[339977076,1728245513051,-1034.12,0.0001863,2]
[339977077,1728245513062,-567.02,0.0001863,2]
[339977078,1728245513073,-547.51,0.0001863,2]
[339977079,1728245513083,-620.41,0.0001863,2]
[339977080,1728245513094,-500.0,0.0001863,2]
[339977081,1728245513104,-500.0,0.0001863,2]
[339977082,1728245513114,-622.64,0.0001863,2]
[339977083,1728245513125,-500.0,0.0001863,2]
[339977084,1728245513135,-1766.09,0.0001863,2]
[339977085,1728245513145,-1018.45,0.0001863,2]
[339977086,1728245513156,-336.72,0.0001863,2]
[339977087,1728245513168,-646.49,0.0001863,2]
[339977088,1728245513178,-548.58,0.0001863,2]
[339977089,1728245513188,-642.06,0.0001863,2]
[339977090,1728245513197,-500.0,0.0001863,2]
[339977091,1728245513207,-678.84,0.0001863,2]
[339977092,1728245513217,-732.29,0.0001863,2]
[339977093,1728245513227,-744.55,0.0001863,2]
[339977094,1728245513236,-500.0,0.0001863,2]
[339977095,1728245513246,-500.0,0.0001863,2]
[339977096,1728245513257,-500.0,0.0001863,2]
[339977097,1728245513267,-701.53,0.0001863,2]
[339977098,1728245513277,-977.67,0.0001863,2]
[339977099,1728245513287,-500.0,0.0001863,2]
[339977100,1728245513297,-631.97,0.0001863,2]
[339977101,1728245513308,-740.81,0.0001863,2]
[339977102,1728245513318,-566.27,0.0001863,2]
[339977103,1728245513327,-1278.33,0.0001863,2]
[339977104,1728245513338,-388.49966184,0.0001863,2]
[339977105,1728245513350,-711.1,0.0001863,2]
[339977106,1728245513361,-500.0,0.0001863,2]
[339977107,1728245513372,-500.0,0.0001863,2]